fUSD/lending_fUSD_20250716
["ID","MTS","AMOUNT","RATE_DAILY","PERIOD"]
[372505235,1752663184894,-460.0,0.00023561,2]
[372505236,1752663184910,-460.0,0.00023561,2]
[372505237,1752663184925,-3492.16,0.00023561,2]
[372505238,1752663184940,-960.48,0.00023561,2]
[372505239,1752663184956,-460.0,0.00023561,2]
[372505240,1752663184970,-697.02,0.00023561,2]
[372505241,1752663184985,-859.04,0.00023561,2]
[372505242,1752663185001,-460.0,0.00023561,2]
[372505243,1752663185015,-460.0,0.00023561,2]
[372505244,1752663185030,-578.96,0.00023561,2]
[372505245,1752663185045,-737.1,0.00023561,2]
[372505246,1752663185060,-3159.42,0.00023561,2]
[372505247,1752663185075,-480.69,0.00023561,2]
[372505248,1752663185089,-658.34,0.00023561,2]
[372505249,1752663185103,-1247.6,0.00023561,2]
[372505250,1752663185118,-460.0,0.00023561,2]
[372505251,1752663185133,-460.0,0.00023561,2]
[372505252,1752663185148,-1704.14,0.00023561,2]
[372505253,1752663185164,-889.84,0.00023561,2]
[372505254,1752663185179,-460.0,0.00023561,2]
[372505255,1752663185194,-460.0,0.00023561,2]
[372505256,1752663185210,-980.18,0.00023561,2]
[372505257,1752663185227,-864.4,0.00023561,2]
[372505258,1752663185242,-460.0,0.00023561,2]
[372505259,1752663185259,-471.28640355,0.00023561,2]
[372505260,1752663185275,-1337.4,0.00023561,2]
[372505261,1752663185290,-460.0,0.00023561,2]
[372505262,1752663185306,-538.85,0.00023561,2]
[372505263,1752663185322,-460.0,0.00023561,2]
[372505264,1752663185337,-460.0,0.00023561,2]
[372505265,1752663185351,-439.19,0.00023561,2]
[372505266,1752663185366,-770.68,0.00023561,2]
[372505267,1752663185381,-1191.07,0.00023561,2]
[372505268,1752663185395,-460.0,0.00023561,2]
[372505269,1752663185409,-1520.94,0.00023561,2]
[372505270,1752663185424,-460.0,0.00023561,2]
[372505271,1752663185439,-554.47,0.00023561,2]
[372505272,1752663185455,-460.0,0.00023561,2]
[372505273,1752663185472,-575.57,0.00023561,2]
[372505274,1752663185488,-614.94,0.00023561,2]
[372505275,1752663185503,-508.9,0.00023561,2]
[372505276,1752663185519,-460.0,0.00023561,2]
[372505277,1752663185534,-2763.38,0.00023561,2]
[372505278,1752663185549,-508.1,0.00023561,2]
[372505279,1752663185562,-1649.66,0.00023561,2]
[372505280,1752663185577,-1198.93,0.00023561,2]
[372505281,1752663185593,-460.0,0.00023561,2]
[372505282,1752663185608,-1021.74,0.00023561,2]
[372505283,1752663185623,-1580.32,0.00023561,2]
[372505284,1752663185639,-460.0,0.00023561,2]
[372505285,1752663185654,-2741.41,0.00023561,2]
[372505286,1752663185669,-460.0,0.00023561,2]
[372505287,1752663185683,-1900.49,0.00023561,2]
[372505288,1752663185700,-3441.76,0.00023561,2]
[372505289,1752663185715,-1705.39,0.00023561,2]
[372505290,1752663185729,-460.0,0.00023561,2]
[372505291,1752663185744,-504.67,0.00023561,2]
[372505292,1752663185760,-962.35,0.00023561,2]
[372505293,1752663185775,-460.0,0.00023561,2]
[372505294,1752663185790,-2750.23,0.00023561,2]
[372505295,1752663185805,-478.83,0.00023561,2]
[372505296,1752663185819,-525.54,0.00023561,2]
[372505297,1752663185834,-1147.29,0.00023561,2]
[372505298,1752663185849,-737.1,0.00023561,2]
[372505299,1752663185864,-1161.16,0.00023561,2]
[372505300,1752663185879,-1861.51,0.00023561,2]
[372505301,1752663185894,-1367.94,0.00023561,2]
[372505302,1752663185908,-464.05,0.00023561,2]
[372505303,1752663185923,-515.0,0.00023561,2]
[372505304,1752663185938,-796.7,0.00023561,2]
[372505305,1752663185953,-509.86,0.00023561,2]
[372505306,1752663185967,-1541.82,0.00023561,2]
[372505307,1752663185981,-2639.83,0.00023561,2]
[372505308,1752663185996,-1604.58,0.00023561,2]
[372505309,1752663186011,-2045.95,0.00023561,2]
[372505310,1752663186026,-720.83,0.00023561,2]
[372505311,1752663186040,-995.1,0.00023561,2]
[372505312,1752663186054,-2767.68,0.00023561,2]
[372505313,1752663186070,-556.0,0.00023561,2]
[372505314,1752663186085,-460.0,0.00023561,2]
[372505315,1752663186099,-474.83,0.00023561,2]
[372505316,1752663186115,-465.39,0.00023561,2]
[372505317,1752663186129,-460.0,0.00023561,2]
[372505318,1752663186142,-597.28,0.00023561,2]
[372505319,1752663186156,-1174.38,0.00023561,2]
[372505320,1752663186170,-469.93,0.00023561,2]
[372505321,1752663186185,-579.42,0.00023561,2]
[372505322,1752663186200,-1146.77,0.00023561,2]
[372505323,1752663186214,-2023.63,0.00023561,2]
[372505324,1752663186232,-627.96,0.00023561,2]
[372505325,1752663186247,-2253.55,0.00023561,2]
[372505326,1752663186263,-597.05,0.00023561,2]
[372505327,1752663186279,-950.28,0.00023561,2]
[372505328,1752663186296,-692.22,0.00023561,2]
[372505329,1752663186311,-597.04,0.00023561,2]
[372505330,1752663186325,-460.0,0.00023561,2]
[372505331,1752663186340,-460.0,0.00023561,2]
[372505332,1752663186354,-934.91,0.00023561,2]
[372505333,1752663186369,-2518.02,0.00023561,2]
[372505334,1752663186384,-1954.32,0.00023561,2]
[372505335,1752663186397,-460.0,0.00023561,2]
[372505336,1752663186413,-1051.45,0.00023561,2]
[372505337,1752663186427,-1320.19,0.00023561,2]
[372505338,1752663186442,-460.0,0.00023561,2]
[372505339,1752663186456,-460.0,0.00023561,2]
[372505340,1752663186470,-527.48,0.00023561,2]
[372505341,1752663186483,-1367.21,0.00023561,2]
[372505342,1752663186498,-3449.55,0.00023561,2]
[372505343,1752663186512,-850.19,0.00023561,2]
[372505344,1752663186526,-460.0,0.00023561,2]
[372505345,1752663186541,-3110.28,0.00023561,2]
[372505346,1752663186555,-802.2,0.00023561,2]
[372505347,1752663186569,-2098.67,0.00023561,2]
[372505348,1752663186584,-460.0,0.00023561,2]
[372505349,1752663186599,-2979.04,0.00023561,2]
[372505350,1752663186612,-940.26,0.00023561,2]
[372505351,1752663186636,-752.81,0.00023561,2]
[372505352,1752663186650,-689.36,0.00023561,2]
[372505353,1752663186664,-945.82,0.00023561,2]
[372505354,1752663186680,-1127.17,0.00023561,2]
[372505355,1752663186694,-461.28,0.00023561,2]
[372505356,1752663186710,-486.62,0.00023561,2]
[372505357,1752663186724,-1080.52,0.00023561,2]
[372505358,1752663186738,-460.0,0.00023561,2]
[372505359,1752663186754,-460.0,0.00023561,2]
[372505360,1752663186768,-3049.9,0.00023561,2]
[372505361,1752663186784,-1920.84,0.00023561,2]
[372505362,1752663186798,-547.91,0.00023561,2]
[372505363,1752663186813,-460.0,0.00023561,2]
[372505364,1752663186828,-460.0,0.00023561,2]
[372505365,1752663186843,-1266.56,0.00023561,2]
[372505366,1752663186858,-1363.97,0.00023561,2]
[372505367,1752663186873,-460.0,0.00023561,2]
[372505368,1752663186889,-1157.14,0.00023561,2]
[372505369,1752663186904,-963.24,0.00023561,2]
[372505370,1752663186919,-1152.83,0.00023561,2]
[372505371,1752663186934,-526.48,0.00023561,2]
[372505372,1752663186949,-2280.97,0.00023561,2]
[372505373,1752663186962,-2306.11,0.00023561,2]
[372505374,1752663186978,-658.25,0.00023561,2]
[372505375,1752663186992,-1495.62,0.00023561,2]
[372505376,1752663187007,-2249.33,0.00023561,2]
[372505377,1752663187022,-902.72,0.00023561,2]
[372505378,1752663187037,-498.87,0.00023561,2]
[372505379,1752663187052,-1741.37,0.00023561,2]
[372505380,1752663187067,-460.0,0.00023561,2]
[372505381,1752663187082,-515.22,0.00023561,2]
[372505382,1752663187097,-1256.01,0.00023561,2]
[372505383,1752663187111,-730.45,0.00023561,2]
[372505384,1752663187126,-748.36,0.00023561,2]
[372505385,1752663187140,-889.78,0.00023561,2]
[372505386,1752663187545,-1213.76,0.00023561,2]
[372505387,1752663187567,-460.0,0.00023561,2]
[372505388,1752663187577,-976.13,0.00023561,2]
[372505389,1752663187587,-595.0,0.00023561,2]
[372505390,1752663187597,-1393.74,0.00023561,2]
[372505391,1752663187607,-1803.46,0.00023561,2]
[372505392,1752663187617,-299.58137997,0.00023561,2]
[372505393,1752663187627,-460.0,0.00023561,2]
[372505394,1752663187637,-2622.24,0.00023561,2]
[372505395,1752663187648,-460.0,0.00023561,2]
[372505396,1752663187658,-476.01,0.00023561,2]
[372505397,1752663187668,-2059.43,0.00023561,2]
[372505398,1752663187678,-2566.84,0.00023561,2]
[372505399,1752663187688,-567.34,0.00023561,2]
[372505400,1752663187698,-2711.83,0.00023561,2]
[372505401,1752663187708,-460.0,0.00023561,2]
[372505402,1752663187717,-629.46,0.00023561,2]
[372505403,1752663187727,-1222.0,0.00023561,2]
[372505404,1752663187737,-1237.1,0.00023561,2]
[372505405,1752663187747,-2588.11,0.00023561,2]
[372505406,1752663187756,-460.0,0.00023561,2]
[372505407,1752663187766,-1423.44,0.00023561,2]
[372505408,1752663187775,-2529.28,0.00023561,2]
[372505409,1752663187785,-460.0,0.00023561,2]
[372505410,1752663187795,-460.0,0.00023561,2]
[372505411,1752663187805,-499.91,0.00023561,2]
[372505412,1752663187815,-1539.06,0.00023561,2]
[372505413,1752663187824,-460.0,0.00023561,2]
[372505414,1752663187833,-1099.63,0.00023561,2]
[372505415,1752663187844,-1405.9,0.00023561,2]
[372505416,1752663187853,-460.0,0.00023561,2]
[372505417,1752663187863,-3553.18,0.00023561,2]
[372505418,1752663187873,-851.53,0.00023561,2]
[372505419,1752663187882,-782.81,0.00023561,2]
[372505420,1752663187892,-540.25,0.00023561,2]
[372505421,1752663187902,-1813.38,0.00023561,2]
[372505422,1752663187912,-460.0,0.00023561,2]
[372505423,1752663187922,-3147.54,0.00023561,2]
[372505424,1752663187933,-1440.52,0.00023561,2]
[372505425,1752663187942,-859.58,0.00023561,2]
[372505426,1752663187952,-1141.87,0.00023561,2]
[372505427,1752663187962,-1810.64,0.00023561,2]
[372505428,1752663187972,-3032.38,0.00023561,2]
[372505429,1752663187982,-460.0,0.00023561,2]
[372505430,1752663187992,-460.0,0.00023561,2]
[372505431,1752663188002,-460.0,0.00023561,2]
[372505432,1752663188012,-853.73,0.00023561,2]
[372505433,1752663188022,-496.87,0.00023561,2]
[372505434,1752663188032,-525.43,0.00023561,2]
[372505435,1752663188042,-460.0,0.00023561,2]
[372505436,1752663188051,-2023.67,0.00023561,2]
[372505437,1752663188061,-1417.02,0.00023561,2]
[372505438,1752663188071,-2884.5,0.00023561,2]
[372505439,1752663188081,-158.040475,0.00023561,2]
[372505440,1752663188091,-460.0,0.00023561,2]
[372505441,1752663188101,-3089.316035,0.00023561,2]
[372505442,1752663188110,-645.68,0.00023561,2]
[372505443,1752663188120,-460.0,0.00023561,2]
[372505444,1752663188130,-2243.27,0.00023561,2]
[372505445,1752663188140,-3447.716716,0.00023561,2]
[372505446,1752663188150,-460.0,0.00023561,2]
[372505447,1752663188160,-1160.26,0.00023561,2]
[372505448,1752663188169,-1094.15,0.00023561,2]
[372505449,1752663188192,-1128.01,0.00023561,2]
[372505450,1752663188203,-465.62,0.00023561,2]
[372505451,1752663188212,-730.18,0.00023561,2]
[372505452,1752663188225,-3424.477153,0.00023561,2]
[372505453,1752663188235,-642.34,0.00023561,2]
[372505454,1752663188244,-1314.79,0.00023561,2]
[372505455,1752663188254,-1198.89,0.00023561,2]
[372505456,1752663188263,-1203.47,0.00023561,2]
[372505457,1752663188273,-887.6,0.00023561,2]
[372505458,1752663188283,-1132.15,0.00023561,2]
[372505459,1752663188293,-1011.16,0.00023561,2]
[372505460,1752663188303,-903.29,0.00023561,2]
[372505461,1752663188314,-2880.76,0.00023561,2]
[372505462,1752663188323,-994.92,0.00023561,2]
[372505463,1752663188333,-1024.12,0.00023561,2]
[372505464,1752663188343,-684.79,0.00023561,2]
[372505465,1752663188352,-1863.81,0.00023561,2]
[372505466,1752663188361,-460.0,0.00023561,2]
[372505467,1752663188371,-1858.32,0.00023561,2]
[372505468,1752663188382,-495.62574332,0.00023561,2]
[372505469,1752663188391,-3055.14,0.00023561,2]
[372505470,1752663188401,-570.24,0.00023561,2]
[372505471,1752663188411,-612.03,0.00023561,2]
[372505472,1752663188421,-460.0,0.00023561,2]
[372505473,1752663188430,-3225.29,0.00023561,2]
[372505474,1752663188440,-1452.54,0.00023561,2]
[372505475,1752663188450,-799.53,0.00023561,2]
[372505476,1752663188460,-708.79,0.00023561,2]
[372505477,1752663188469,-967.0,0.00023561,2]
[372505478,1752663188479,-460.0,0.00023561,2]
[372505479,1752663188489,-2151.45,0.00023561,2]
[372505480,1752663188498,-909.92,0.00023561,2]
[372505481,1752663188508,-460.0,0.00023561,2]
[372505482,1752663188518,-574.66,0.00023561,2]
[372505483,1752663188528,-18257.49,0.00023561,2]
[372505484,1752663188537,-460.0,0.00023561,2]
[372505485,1752663188547,-1366.55,0.00023561,2]
[372505486,1752663188556,-2712.48,0.00023561,2]
[372505487,1752663188566,-1243.92,0.00023561,2]
[372505488,1752663188576,-4396.18,0.00023561,2]
[372505489,1752663188586,-530.09,0.00023561,2]
[372505490,1752663188595,-5268.98,0.00023561,2]
[372505491,1752663188606,-558.0,0.00023561,2]
[372505492,1752663188615,-1950.3,0.00023561,2]
[372505493,1752663188625,-661.22,0.00023561,2]
[372505494,1752663188636,-802.89,0.00023561,2]
[372505495,1752663188645,-1009.57,0.00023561,2]
[372505496,1752663188654,-548.97,0.00023561,2]
[372505497,1752663188664,-806.79,0.00023561,2]
[372505498,1752663188674,-1016.81,0.00023561,2]
[372505499,1752663188684,-716.51,0.00023561,2]
[372505500,1752663188694,-1807.77,0.00023561,2]
[372505501,1752663188704,-3401.52,0.00023561,2]
[372505502,1752663188714,-460.0,0.00023561,2]
[372505503,1752663188724,-1577.99,0.00023561,2]
[372505504,1752663188734,-460.0,0.00023561,2]
[372505505,1752663188744,-460.0,0.00023561,2]
[372505506,1752663188754,-1090.35,0.00023561,2]
[372505507,1752663188764,-2180.23,0.00023561,2]
[372505508,1752663188775,-993.34,0.00023561,2]
[372505509,1752663188787,-2435.35,0.00023561,2]
[372505510,1752663188798,-9495.76,0.00023561,2]
[372505511,1752663188807,-6460.58,0.00023561,2]
[372505512,1752663188817,-932.03,0.00023561,2]
[372505513,1752663188826,-2366.57,0.00023561,2]
[372505514,1752663188837,-635.82,0.00023561,2]
[372505515,1752663188847,-460.0,0.00023561,2]
[372505516,1752663188856,-460.0,0.00023561,2]
[372505517,1752663188866,-1384.4,0.00023561,2]
[372505518,1752663188876,-2004.78,0.00023561,2]
[372505519,1752663188886,-1405.03,0.00023561,2]
[372505520,1752663188896,-689.97,0.00023561,2]
[372505521,1752663188906,-3219.3,0.00023561,2]
[372505522,1752663188915,-460.0,0.00023561,2]
[372505523,1752663188926,-660.19,0.00023561,2]
[372505524,1752663188939,-460.0,0.00023561,2]
[372505525,1752663188948,-460.0,0.00023561,2]
[372505526,1752663188958,-460.0,0.00023561,2]
[372505527,1752663188968,-4073.22,0.00023561,2]
[372505528,1752663188979,-829.45,0.00023561,2]
[372505529,1752663188989,-1482.8,0.00023561,2]
[372505530,1752663189000,-1224.36,0.00023561,2]
[372505531,1752663189010,-1186.85,0.00023561,2]
[372505532,1752663189021,-1846.22,0.00023561,2]
[372505533,1752663189031,-2508.45,0.00023561,2]
[372505534,1752663189041,-605.83,0.00023561,2]
[372505535,1752663189051,-1023.53,0.00023561,2]
[372505536,1752663189060,-571.95,0.00023561,2]
[372505537,1752663189070,-2046.51,0.00023561,2]
[372505538,1752663189079,-5496.82,0.00023561,2]
[372505539,1752663189089,-845.91,0.00023561,2]
[372505540,1752663189099,-1729.36,0.00023561,2]
[372505541,1752663189109,-460.0,0.00023561,2]
[372505542,1752663189119,-1153.38,0.00023561,2]
[372505543,1752663189129,-1471.4,0.00023561,2]
[372505544,1752663189139,-460.0,0.00023561,2]
[372505545,1752663189149,-25686.63,0.00023561,2]
[372505546,1752663189159,-2265.87,0.00023561,2]
[372505547,1752663189168,-1804.24,0.00023561,2]
[372505548,1752663189178,-801.55,0.00023561,2]
[372505549,1752663189188,-667.91,0.00023561,2]
[372505550,1752663189198,-460.0,0.00023561,2]
[372505551,1752663189208,-460.0,0.00023561,2]
[372505552,1752663189218,-460.0,0.00023561,2]
[372505553,1752663189231,-460.0,0.00023561,2]
[372505554,1752663189241,-460.0,0.00023561,2]
[372505555,1752663189250,-720.01,0.00023561,2]
[372505556,1752663189260,-912.12,0.00023561,2]
[372505557,1752663189271,-1488.97,0.00023561,2]
[372505558,1752663189280,-2378.43,0.00023561,2]
[372505559,1752663189290,-693.6,0.00023561,2]
[372505560,1752663189300,-568.78,0.00023561,2]
[372505561,1752663189310,-1662.59,0.00023561,2]
[372505562,1752663189320,-2336.76,0.00023561,2]
[372505563,1752663189330,-834.17,0.00023561,2]
[372505564,1752663189340,-3608.17,0.00023561,2]
[372505565,1752663189350,-578.22,0.00023561,2]
[372505566,1752663189359,-465.11,0.00023561,2]
[372505567,1752663189369,-590.67,0.00023561,2]
[372505568,1752663189379,-1551.69,0.00023561,2]
[372505569,1752663189388,-722.56,0.00023561,2]
[372505570,1752663189398,-460.0,0.00023561,2]
[372505571,1752663189408,-468.55,0.00023561,2]
[372505572,1752663189418,-4023.17,0.00023561,2]
[372505573,1752663189428,-517.03,0.00023561,2]
[372505574,1752663189438,-460.0,0.00023561,2]
[372505575,1752663189447,-460.0,0.00023561,2]
[372505576,1752663189458,-546.65,0.00023561,2]
[372505577,1752663189468,-4710.56,0.00023561,2]
[372505578,1752663189478,-3644.36,0.00023561,2]
[372505579,1752663189487,-1375.33,0.00023561,2]
[372505580,1752663189497,-3437.5,0.00023561,2]
[372505581,1752663189507,-460.0,0.00023561,2]
[372505582,1752663189516,-1086.94,0.00023561,2]
[372505583,1752663189525,-1882.13,0.00023561,2]
[372505584,1752663189535,-533.59,0.00023561,2]
[372505585,1752663189544,-819.82,0.00023561,2]
[372505586,1752663189554,-846.81,0.00023561,2]
[372505587,1752663189564,-10473.68,0.00023561,2]
[372505588,1752663189575,-956.97,0.00023561,2]
[372505589,1752663189586,-460.0,0.00023561,2]
[372505590,1752663189597,-1075.31,0.00023561,2]
[372505591,1752663189607,-10262.44,0.00023561,2]
[372505592,1752663189616,-460.0,0.00023561,2]
[372505593,1752663189626,-9009.22,0.00023561,2]
[372505594,1752663189637,-927.79,0.00023561,2]
[372505595,1752663189647,-7641.39,0.00023561,2]
[372505596,1752663189658,-1305.47,0.00023561,2]
[372505597,1752663189668,-6402.79,0.00023561,2]
[372505598,1752663189679,-999.84,0.00023561,2]
[372505599,1752663189689,-1048.05,0.00023561,2]
[372505600,1752663189699,-1145.26,0.00023561,2]
[372505601,1752663189708,-1085.51,0.00023561,2]
[372505602,1752663189718,-7522.89,0.00023561,2]
[372505603,1752663189728,-985.55,0.00023561,2]
[372505604,1752663189738,-460.0,0.00023561,2]
[372505605,1752663189748,-7023.53,0.00023561,2]
[372505606,1752663189758,-1618.81,0.00023561,2]
[372505607,1752663189767,-460.0,0.00023561,2]
[372505608,1752663189777,-699.45,0.00023561,2]
[372505609,1752663189787,-4907.65,0.00023561,2]
[372505610,1752663189797,-460.0,0.00023561,2]
[372505611,1752663189807,-460.0,0.00023561,2]
[372505612,1752663189817,-4103.12,0.00023561,2]
[372505613,1752663189827,-587.29,0.00023561,2]
[372505614,1752663189837,-1101.08,0.00023561,2]
[372505615,1752663189847,-2334.85,0.00023561,2]
[372505616,1752663189857,-1300.92,0.00023561,2]
[372505617,1752663189867,-1839.74,0.00023561,2]
[372505618,1752663189876,-7022.82,0.00023561,2]
[372505619,1752663189886,-337.02770812,0.00023561,2]
[372505620,1752663189895,-460.0,0.00023561,2]
[372505621,1752663189905,-460.0,0.00023561,2]
[372505622,1752663189915,-805.39,0.00023561,2]
[372505623,1752663189925,-460.0,0.00023561,2]
[372505624,1752663189934,-574.7,0.00023561,2]
[372505625,1752663189943,-460.0,0.00023561,2]
[372505626,1752663189953,-4783.75,0.00023561,2]
[372505627,1752663189962,-11831.05,0.00023561,2]
[372505628,1752663189972,-460.0,0.00023561,2]
[372505629,1752663189982,-2063.66,0.00023561,2]
[372505630,1752663189991,-12650.62,0.00023561,2]
[372505631,1752663190001,-787.25,0.00023561,2]
[372505632,1752663190010,-641.88,0.00023561,2]
[372505633,1752663190019,-1721.09,0.00023561,2]
[372505634,1752663190030,-609.0,0.00023561,2]
[372505635,1752663190039,-460.0,0.00023561,2]
[372505636,1752663190049,-5175.99,0.00023561,2]
[372505637,1752663190059,-2321.93,0.00023561,2]
[372505638,1752663190069,-1046.05,0.00023561,2]
[372505639,1752663190079,-2399.4,0.00023561,2]
[372505640,1752663190090,-1196.04,0.00023561,2]
[372505641,1752663190099,-5256.36,0.00023561,2]
[372505642,1752663190109,-460.0,0.00023561,2]
[372505643,1752663190119,-460.0,0.00023561,2]
[372505644,1752663190129,-1199.05,0.00023561,2]
[372505645,1752663190139,-570.67,0.00023561,2]
[372505646,1752663190149,-1873.93,0.00023561,2]
[372505647,1752663190158,-608.82,0.00023561,2]
[372505648,1752663190169,-6048.28,0.00023561,2]
[372505649,1752663190179,-647.56,0.00023561,2]
[372505650,1752663190189,-460.0,0.00023561,2]
[372505651,1752663190198,-25853.72,0.00023561,2]
[372505652,1752663190208,-3826.55,0.00023561,2]
[372505653,1752663190217,-679.82,0.00023561,2]
[372505654,1752663190232,-4984.48,0.00023561,2]
[372505655,1752663190242,-644.0,0.00023561,2]
[372505656,1752663190253,-1010.1,0.00023561,2]
[372505657,1752663190264,-587.74,0.00023561,2]
[372505658,1752663190274,-1216.26,0.00023561,2]
[372505659,1752663190284,-2657.96,0.00023561,2]
[372505660,1752663190295,-2675.67,0.00023561,2]
[372505661,1752663190309,-2707.25,0.00023561,2]
[372505662,1752663190319,-1531.63,0.00023561,2]
[372505663,1752663190330,-460.0,0.00023561,2]
[372505664,1752663190340,-807.97,0.00023561,2]
[372505665,1752663190350,-460.0,0.00023561,2]
[372505666,1752663190360,-2892.99,0.00023561,2]
[372505667,1752663190370,-10398.73,0.00023561,2]
[372505668,1752663190379,-3663.1,0.00023561,2]
[372505669,1752663190390,-6155.9,0.00023561,2]
[372505670,1752663190400,-460.0,0.00023561,2]
[372505671,1752663190410,-2417.79,0.00023561,2]
[372505672,1752663190420,-1645.27,0.00023561,2]
[372505673,1752663190429,-5760.76,0.00023561,2]
[372505674,1752663190439,-1156.71,0.00023561,2]
[372505675,1752663190449,-2977.53,0.00023561,2]
[372505676,1752663190458,-4994.77,0.00023561,2]
[372505677,1752663190468,-2707.06,0.00023561,2]
[372505678,1752663190478,-828.48,0.00023561,2]
[372505679,1752663190488,-1737.41,0.00023561,2]
[372505680,1752663190497,-1860.1,0.00023561,2]
[372505681,1752663190507,-618.42,0.00023561,2]
[372505682,1752663190517,-460.0,0.00023561,2]
[372505683,1752663190526,-697.34,0.00023561,2]
[372505684,1752663190536,-3082.79,0.00023561,2]
[372505685,1752663190546,-763.37,0.00023561,2]
[372505686,1752663190556,-5360.04,0.00023561,2]
[372505687,1752663190565,-1544.88,0.00023561,2]
[372505688,1752663190575,-532.67,0.00023561,2]
[372505689,1752663190585,-566.67,0.00023561,2]
[372505690,1752663190595,-1351.27,0.00023561,2]
[372505691,1752663190605,-1854.73,0.00023561,2]
[372505692,1752663190615,-6960.91,0.00023561,2]
[372505693,1752663190625,-498.31,0.00023561,2]
[372505694,1752663190635,-1871.79,0.00023561,2]
[372505695,1752663190645,-935.71,0.00023561,2]
[372505696,1752663190658,-1354.22,0.00023561,2]
[372505697,1752663190668,-1210.46,0.00023561,2]
[372505698,1752663190680,-647.88,0.00023561,2]
[372505699,1752663190691,-460.0,0.00023561,2]
[372505700,1752663190702,-3727.42,0.00023561,2]
[372505701,1752663190975,-4520.63,0.00023561,2]
[372505702,1752663190985,-460.0,0.00023561,2]
[372505703,1752663190995,-544.05,0.00023561,2]
[372505704,1752663191005,-1562.68,0.00023561,2]
[372505705,1752663191014,-1807.76,0.00023561,2]
[372505706,1752663191024,-804.49,0.00023561,2]
[372505707,1752663191033,-460.0,0.00023561,2]
[372505708,1752663191043,-460.0,0.00023561,2]
[372505709,1752663191053,-1674.69,0.00023561,2]
[372505710,1752663191063,-2967.28,0.00023561,2]
[372505711,1752663191073,-619.88,0.00023561,2]
[372505712,1752663191082,-1331.59,0.00023561,2]
[372505713,1752663191092,-4930.79,0.00023561,2]
[372505714,1752663191102,-1756.27,0.00023561,2]
[372505715,1752663191111,-460.0,0.00023561,2]
[372505716,1752663191122,-1372.2,0.00023561,2]
[372505717,1752663191132,-3471.77,0.00023561,2]
[372505718,1752663191142,-2884.75,0.00023561,2]
[372505719,1752663191151,-4338.23,0.00023561,2]
[372505720,1752663191161,-1048.9,0.00023561,2]
[372505721,1752663191171,-1304.13,0.00023561,2]
[372505722,1752663191181,-2952.62,0.00023561,2]
[372505723,1752663191190,-861.69,0.00023561,2]
[372505724,1752663191200,-460.0,0.00023561,2]
[372505725,1752663191210,-771.65,0.00023561,2]
[372505726,1752663191219,-5916.53,0.00023561,2]
[372505727,1752663191232,-2011.92,0.00023561,2]
[372505728,1752663191242,-589.94,0.00023561,2]
[372505729,1752663191251,-469.09,0.00023561,2]
[372505730,1752663191263,-18520.14,0.00023561,2]
[372505731,1752663191272,-1267.95,0.00023561,2]
[372505732,1752663191282,-1896.91,0.00023561,2]
[372505733,1752663191293,-6378.4,0.00023561,2]
[372505734,1752663191303,-624.77,0.00023561,2]